fUSD/lending_fUSD_20240218
["ID","MTS","AMOUNT","RATE_DAILY","PERIOD"]
[314374622,1708245034137,-500.0,0.00036271,2]
[314374623,1708245034146,-500.0,0.00036271,2]
[314374624,1708245034157,-500.0,0.00036271,2]
[314374625,1708245034167,-500.0,0.00036271,2]
[314374626,1708245034177,-500.0,0.00036271,2]
[314374627,1708245034186,-500.0,0.00036271,2]
[314374628,1708245034196,-500.0,0.00036271,2]
[314374629,1708245034205,-500.0,0.00036271,2]
[314374630,1708245034215,-500.0,0.00036271,2]
[314374631,1708245034224,-500.0,0.00036271,2]
[314374632,1708245034233,-500.0,0.00036271,2]
[314374633,1708245034243,-573.9712019,0.00036271,2]
[314374634,1708245034252,-500.0,0.00036271,2]
[314374635,1708245034262,-500.0,0.00036271,2]
[314374636,1708245034271,-575.67426858,0.00036271,2]
[314374637,1708245034281,-500.0,0.00036271,2]
[314374638,1708245034290,-500.0,0.00036271,2]
[314374639,1708245034299,-593.88996901,0.00036271,2]
[314374640,1708245034309,-500.0,0.00036271,2]
[314374641,1708245034318,-500.0,0.00036271,2]
[314374642,1708245034328,-500.0,0.00036271,2]
[314374643,1708245034337,-500.0,0.00036271,2]
[314374644,1708245034346,-767.56,0.00036271,2]
[314374645,1708245034356,-500.0,0.00036271,2]
[314374646,1708245034366,-500.0,0.00036271,2]
[314374647,1708245034375,-500.0,0.00036271,2]
[314374648,1708245034384,-500.0,0.00036271,2]
[314374649,1708245034394,-608.03,0.00036271,2]
[314374650,1708245034403,-500.0,0.00036271,2]
[314374651,1708245034413,-500.0,0.00036271,2]
[314374652,1708245034422,-774.7,0.00036271,2]
[314374653,1708245034431,-500.0,0.00036271,2]
[314374654,1708245034441,-500.0,0.00036271,2]
[314374655,1708245034451,-500.0,0.00036271,2]
[314374656,1708245034461,-500.0,0.00036271,2]
[314374657,1708245034470,-500.0,0.00036271,2]
[314374658,1708245034480,-500.0,0.00036271,2]
[314374659,1708245034492,-500.0,0.00036271,2]
[314374660,1708245034501,-500.0,0.00036271,2]
[314374661,1708245034511,-500.0,0.00036271,2]
[314374662,1708245034519,-500.0,0.00036271,2]
[314374663,1708245034529,-500.0,0.00036271,2]
[314374664,1708245034539,-500.0,0.00036271,2]
[314374665,1708245034548,-500.0,0.00036271,2]
[314374666,1708245034557,-500.0,0.00036271,2]
[314374667,1708245034568,-500.0,0.00036271,2]
[314374668,1708245034579,-500.0,0.00036271,2]
[314374669,1708245034588,-1299.98,0.00036271,2]
[314374670,1708245034600,-509.77,0.00036271,2]
[314374671,1708245034609,-500.0,0.00036271,2]
[314374672,1708245034619,-1686.55,0.00036271,2]
[314374673,1708245034629,-500.0,0.00036271,2]
[314374674,1708245034640,-500.0,0.00036271,2]
[314374675,1708245034650,-500.0,0.00036271,2]
[314374676,1708245034659,-500.0,0.00036271,2]
[314374677,1708245034669,-500.0,0.00036271,2]
[314374678,1708245034678,-500.0,0.00036271,2]
[314374679,1708245034688,-500.0,0.00036271,2]
[314374680,1708245034697,-500.0,0.00036271,2]
[314374681,1708245034706,-500.0,0.00036271,2]
[314374682,1708245034716,-500.0,0.00036271,2]
[314374683,1708245034725,-500.0,0.00036271,2]
[314374684,1708245034735,-1359.6,0.00036271,2]
[314374685,1708245034744,-500.0,0.00036271,2]
[314374686,1708245034753,-500.0,0.00036271,2]
[314374687,1708245034762,-500.0,0.00036271,2]
[314374688,1708245034772,-500.0,0.00036271,2]
[314374689,1708245034781,-595.78503751,0.00036271,2]
[314374690,1708245034790,-500.0,0.00036271,2]
[314374691,1708245034800,-500.0,0.00036271,2]
[314374692,1708245034809,-500.0,0.00036271,2]
[314374693,1708245034818,-500.0,0.00036271,2]
[314374694,1708245034827,-500.0,0.00036271,2]
[314374695,1708245034836,-500.0,0.00036271,2]
[314374696,1708245034846,-500.0,0.00036271,2]
[314374697,1708245034855,-500.0,0.00036271,2]
[314374698,1708245034864,-500.0,0.00036271,2]
[314374699,1708245034874,-500.0,0.00036271,2]
[314374700,1708245034884,-500.0,0.00036271,2]
[314374701,1708245034893,-637.31,0.00036271,2]
[314374702,1708245034903,-500.0,0.00036271,2]
[314374703,1708245034912,-500.0,0.00036271,2]
[314374704,1708245034921,-500.0,0.00036271,2]
[314374705,1708245034931,-500.0,0.00036271,2]
[314374706,1708245034940,-500.0,0.00036271,2]
[314374707,1708245034950,-500.0,0.00036271,2]
[314374708,1708245034959,-1237.24,0.00036271,2]
[314374709,1708245034968,-500.0,0.00036271,2]
[314374710,1708245034977,-500.0,0.00036271,2]
[314374711,1708245034986,-500.0,0.00036271,2]
[314374712,1708245034995,-500.0,0.00036271,2]
[314374713,1708245035005,-500.0,0.00036271,2]
[314374714,1708245035015,-546.75789043,0.00036271,2]
[314374715,1708245035024,-1000.0,0.00036271,7]
[314374716,1708245035034,-500.0,0.00036271,2]
[314374717,1708245035044,-500.0,0.00036271,2]
[314374718,1708245035055,-500.0,0.00036271,2]
[314374719,1708245035065,-500.0,0.00036271,2]
[314374720,1708245035076,-500.0,0.00036271,2]
[314374721,1708245035085,-634.83199201,0.00036271,2]
[314374722,1708245035095,-500.0,0.00036271,2]
[314374723,1708245035104,-447.41354858,0.00036271,2]
[314374724,1708245035114,-500.0,0.00036271,2]
[314374725,1708245035123,-500.0,0.00036271,2]
[314374726,1708245035133,-500.0,0.00036271,2]
[314374727,1708245035142,-500.0,0.00036271,2]
[314374728,1708245035151,-500.0,0.00036271,2]
[314374729,1708245035161,-500.0,0.00036271,2]
[314374730,1708245035171,-1199.76,0.00036271,2]
[314374731,1708245035180,-500.0,0.00036271,2]
[314374732,1708245035190,-500.0,0.00036271,2]
[314374733,1708245035199,-277.23784105,0.00036271,2]
[314374734,1708245035209,-500.0,0.00036271,2]
[314374735,1708245035218,-500.0,0.00036271,2]
[314374736,1708245035227,-500.0,0.00036271,2]
[314374737,1708245035236,-500.0,0.00036271,2]
[314374738,1708245035246,-1361.14,0.00036271,2]
[314374739,1708245035256,-500.0,0.00036271,2]
[314374740,1708245035266,-500.0,0.00036271,2]
[314374741,1708245035275,-500.0,0.00036271,2]
[314374742,1708245035285,-500.0,0.00036271,2]
[314374743,1708245035294,-500.0,0.00036271,2]
[314374744,1708245035304,-500.0,0.00036271,2]
[314374745,1708245035313,-500.0,0.00036271,2]
[314374746,1708245035323,-500.0,0.00036271,2]
[314374747,1708245035332,-814.44,0.00036271,2]
[314374748,1708245035342,-500.0,0.00036271,2]
[314374749,1708245035351,-147484.28188064,0.00036272,2]
[314374750,1708245035361,-608.03,0.00036272,2]
[314374751,1708245035370,-500.0,0.00036272,2]
[314374752,1708245035379,-500.0,0.00036272,2]
[314374753,1708245035389,-1686.55,0.00036272,2]
[314374754,1708245035399,-481.92759357,0.00036272,2]
[314374755,1708245035408,-500.0,0.00036272,2]
[314374756,1708245035417,-500.0,0.00036272,2]
[314374757,1708245035427,-1359.6,0.00036272,2]
[314374758,1708245035437,-1772.8,0.00036272,2]
[314374759,1708245035446,-400.91150402,0.00036272,2]
[314374760,1708245035455,-500.0,0.00036272,2]
[314374761,1708245035464,-500.0,0.00036272,2]
[314374762,1708245035474,-637.31,0.00036272,2]
[314374763,1708245035484,-500.0,0.00036272,2]
[314374764,1708245035497,-500.0,0.00036272,2]
[314374765,1708245035507,-500.0,0.00036272,2]
[314374766,1708245035516,-2661.7,0.00036272,2]
[314374767,1708245035525,-500.0,0.00036272,2]
[314374768,1708245035535,-500.0,0.00036272,2]
[314374769,1708245035544,-811.23,0.00036272,2]
[314374770,1708245035553,-500.0,0.00036272,2]
[314374771,1708245035562,-500.0,0.00036272,2]
[314374772,1708245035573,-500.0,0.00036272,2]
[314374773,1708245035583,-500.0,0.00036272,2]
[314374774,1708245035593,-500.0,0.00036272,2]
[314374775,1708245035602,-1823.84,0.00036272,2]
[314374776,1708245035612,-500.0,0.00036272,2]
[314374777,1708245035621,-3323.21802859,0.00036272,2]
[314374778,1708245035638,-549.35079271,0.00036272,2]
[314374790,1708245037557,-220.61248479,0.00025224,2]
[314374792,1708245037568,-500.0,0.0003627,2]
[314374793,1708245037578,-500.0,0.0003627,2]
[314374794,1708245037587,-5044.9511787,0.00036272,2]
[314374795,1708245037596,-2359.79,0.00036272,2]
[314374796,1708245037605,-500.0,0.00036272,2]
[314374797,1708245037615,-308.20601762,0.00036272,2]
[314374798,1708245037624,-1361.14,0.00036272,2]
[314374799,1708245037632,-500.0,0.00036272,2]
[314374800,1708245037641,-500.0,0.00036272,2]
[314374801,1708245037650,-500.0,0.00036272,2]
[314374802,1708245037659,-500.0,0.00036272,2]
[314374803,1708245037669,-780.14036927,0.00036273,4]
[314374804,1708245037679,-500.0,0.00036273,2]
[314374805,1708245037688,-432.41654965,0.00036273,2]
[314374806,1708245037700,-67.58345035,0.00036273,2]
[314374807,1708245037710,-500.0,0.00036273,2]
[314374808,1708245037720,-500.0,0.00036273,2]
[314374809,1708245037729,-535.15937453,0.00036273,2]
[314374810,1708245037738,-500.0,0.00036273,2]
[314374811,1708245037748,-500.0,0.00036273,2]
[314374812,1708245037757,-500.0,0.00036273,2]
[314374813,1708245037768,-500.0,0.00036273,2]
[314374814,1708245037776,-500.0,0.00036273,2]
[314374815,1708245037786,-500.0,0.00036273,2]
[314374816,1708245037795,-500.0,0.00036273,2]
[314374817,1708245037804,-500.0,0.00036273,2]
[314374818,1708245037814,-500.0,0.00036273,2]
[314374819,1708245037824,-500.0,0.00036273,2]
[314374820,1708245037833,-500.0,0.00036273,2]
[314374821,1708245037842,-500.0,0.00036273,2]
[314374822,1708245037852,-454.24160214,0.00036273,2]
[314374823,1708245037862,-500.0,0.00036273,2]
[314374824,1708245037871,-500.0,0.00036273,2]
[314374825,1708245037880,-500.0,0.00036273,2]
[314374826,1708245037890,-500.0,0.00036273,2]
[314374827,1708245037899,-500.0,0.00036273,2]
[314374828,1708245037908,-494.27605988,0.00036273,2]
[314374829,1708245037917,-500.0,0.00036273,2]
[314374830,1708245037927,-500.0,0.00036273,2]
[314374831,1708245037936,-500.0,0.00036273,2]
[314374832,1708245037945,-500.0,0.00036273,2]
[314374833,1708245037955,-500.0,0.00036273,2]
[314374834,1708245037964,-500.0,0.00036273,2]
[314374835,1708245037973,-500.0,0.00036273,2]
[314374836,1708245037983,-500.0,0.00036273,2]
[314374837,1708245037992,-500.0,0.00036273,2]
[314374839,1708245038001,-538.41267553,0.00036273,2]
[314374841,1708245038011,-500.0,0.00036273,2]
[314374843,1708245038020,-500.0,0.00036273,2]
[314374845,1708245038029,-530.67299263,0.00036273,2]
[314374847,1708245038038,-500.0,0.00036273,2]
[314374849,1708245038047,-500.0,0.00036273,2]
[314374851,1708245038056,-500.0,0.00036273,2]
[314374853,1708245038065,-500.0,0.00036273,2]
[314374855,1708245038074,-500.0,0.00036273,2]
[314374857,1708245038082,-500.0,0.00036273,2]
[314374859,1708245038092,-500.0,0.00036273,2]
[314374861,1708245038101,-500.0,0.00036273,2]
[314374863,1708245038110,-500.0,0.00036273,2]
[314374865,1708245038119,-500.0,0.00036273,2]
[314374867,1708245038128,-500.0,0.00036273,2]
[314374869,1708245038138,-500.0,0.00036273,2]
[314374871,1708245038146,-500.0,0.00036273,2]
[314374873,1708245038155,-500.0,0.00036273,2]
[314374875,1708245038164,-500.0,0.00036273,2]
[314374877,1708245038173,-500.0,0.00036273,2]
[314374879,1708245038182,-500.0,0.00036273,2]
[314374881,1708245038191,-500.0,0.00036273,2]
[314374883,1708245038201,-500.0,0.00036273,2]
[314374885,1708245038210,-500.0,0.00036273,2]
[314374887,1708245038219,-118.25384623,0.00036273,2]
[314374912,1708245038432,-500.0,0.00036271,2]
[314374914,1708245038443,-381.74615377,0.00036273,2]
[314374916,1708245038452,-500.0,0.00036273,2]
[314374918,1708245038461,-565.2556347,0.00036273,10]
[314374920,1708245038470,-500.0,0.00036273,2]
[314374922,1708245038480,-500.0,0.00036273,2]
[314374924,1708245038491,-500.0,0.00036273,2]
[314374926,1708245038500,-641.74812113,0.00036273,2]
[314374928,1708245038509,-240.6234532,0.00036273,2]
[314374930,1708245038523,-259.3765468,0.00036273,2]
[314374932,1708245038533,-500.0,0.00036273,2]
[314374934,1708245038542,-277.52771168,0.00036273,2]
[314374937,1708245038556,-222.47228832,0.00036273,2]
[314374938,1708245038565,-259.57491167,0.00036273,2]
[314374941,1708245038577,-240.42508833,0.00036273,2]
[314374943,1708245038586,-307.62069967,0.00036273,2]
[314374946,1708245038606,-192.37930033,0.00036273,2]
[314374948,1708245038614,-230.45834383,0.00036273,2]
[314374951,1708245038637,-269.54165617,0.00036273,2]
[314374953,1708245038646,-500.0,0.00036273,2]
[314374955,1708245038655,-121.87936531,0.00036273,2]
[314375119,1708245040223,-425.45367269,0.00036271,2]
[314375121,1708245040233,-378.12063469,0.00036273,2]
[314375123,1708245040242,-500.0,0.00036273,2]
[314375125,1708245040250,-430.04435386,0.00036273,2]
[314375127,1708245040265,-69.95564614,0.00036273,2]
[314375128,1708245040274,-500.0,0.00036273,2]
[314375130,1708245040283,-205.12435386,0.00036273,2]
[314375197,1708245041037,-294.87564614,0.00036273,2]
[314375199,1708245041047,-342.39371217,0.00036273,2]
[314375205,1708245041094,-157.60628783,0.00036273,2]
[314375207,1708245041103,-352.73161446,0.00036273,2]
[314375212,1708245041151,-147.26838554,0.00036273,2]
[314375214,1708245041161,-500.0,0.00036273,2]
[314375216,1708245041170,-500.0,0.00036273,2]
[314375218,1708245041179,-500.0,0.00036273,2]
[314375220,1708245041188,-632.16057007,0.00036273,2]
[314375221,1708245041197,-486.06194557,0.00036273,2]
[314375223,1708245041207,-500.0,0.00036273,2]
[314375225,1708245041216,-500.0,0.00036273,2]
[314375227,1708245041225,-560.25429553,0.00036273,2]
[314375229,1708245041234,-4.60908823,0.00036273,2]
[314375230,1708245041246,-547.05092588,0.00036273,2]
[314375231,1708245041255,-551.0885359,0.00036273,2]
[314375232,1708245041264,-500.0,0.00036273,2]
[314375233,1708245041273,-500.0,0.00036273,2]
[314375234,1708245041282,-595.73767022,0.00036273,2]
[314375235,1708245041290,-500.0,0.00036273,2]
[314375236,1708245041300,-500.0,0.00036273,2]
[314375237,1708245041310,-500.0,0.00036273,2]
[314375238,1708245041319,-511.81665746,0.00036273,2]
[314375239,1708245041328,-526.68126484,0.00036273,2]
[314375240,1708245041336,-500.0,0.00036273,2]
[314375242,1708245041345,-500.0,0.00036273,2]
[314375244,1708245041354,-522.53060606,0.00036273,2]
[314375246,1708245041363,-507.80791282,0.00036273,2]
[314375248,1708245041372,-515.12660645,0.00036273,2]
[314375250,1708245041381,-546.00661937,0.00036273,2]
[314375252,1708245041390,-562.76316045,0.00036273,2]
[314375254,1708245041399,-500.0,0.00036273,2]
[314375256,1708245041408,-33.78012347,0.00036273,2]
[314375258,1708245041421,-466.21987653,0.00036273,2]
[314375260,1708245041430,-16.20428176,0.00036273,2]
[314375391,1708245042585,-557.36,0.0003627,2]
[314375393,1708245042595,-500.0,0.0003627,2]
[314375395,1708245042604,-557.36,0.00036272,2]
[314375397,1708245042613,-500.0,0.00036272,2]
[314375399,1708245042622,-483.79571824,0.00036273,2]
[314375401,1708245042631,-520.49779766,0.00036273,2]
[314375403,1708245042640,-534.87783871,0.00036273,2]
[314375405,1708245042650,-500.0,0.00036273,2]
[314375408,1708245042670,-176.71622785,0.00036273,2]
[314375410,1708245042680,-817.64962032,0.00036273,2]
[314375412,1708245042689,-516.7381414,0.00036273,2]
[314375414,1708245042699,-500.0,0.00036273,2]
[314375416,1708245042710,-513.66888968,0.00036273,2]
[314375418,1708245042720,-513.14849852,0.00036273,2]
[314375421,1708245042730,-500.0,0.00036273,2]
[314375423,1708245042740,-453.7646615,0.00036273,2]
[314375425,1708245042758,-46.2353385,0.00036273,2]
[314375427,1708245042768,-500.0,0.00036273,2]
[314375429,1708245042777,-500.0,0.00036273,2]
[314375431,1708245042786,-500.0,0.00036273,2]
[314375433,1708245042795,-476.83425977,0.00036273,2]
[314375435,1708245042805,-518.45983741,0.00036273,2]
[314375437,1708245042814,-508.32264707,0.00036273,2]
[314375439,1708245042824,-545.35059671,0.00036273,2]
[314375441,1708245042833,-500.0,0.00036273,2]
[314375443,1708245042843,-509.34813451,0.00036273,2]
[314375445,1708245042852,-540.31991243,0.00036273,2]
[314375447,1708245042862,-523.35284475,0.00036273,2]
[314375449,1708245042871,-500.0,0.00036273,2]
[314375451,1708245042880,-500.0,0.00036273,2]
[314375453,1708245042889,-475.72555642,0.00036273,2]
[314375455,1708245042899,-500.0,0.00036273,2]
[314375457,1708245042909,-500.0,0.00036273,2]
[314375459,1708245042918,-500.0,0.00036273,2]
[314375461,1708245042927,-524.14088202,0.00036273,2]
[314375463,1708245042936,-574.60372632,0.00036273,2]
[314375465,1708245042945,-516.14867928,0.00036273,2]
[314375467,1708245042955,-500.0,0.00036273,2]
[314375469,1708245042964,-500.0,0.00036273,2]
[314375471,1708245042974,-518.16554174,0.00036273,2]
[314375473,1708245042983,-523.81227335,0.00036273,2]
[314375475,1708245042992,-500.0,0.00036273,2]
[314375477,1708245043001,-500.0,0.00036273,2]
[314375479,1708245043010,-500.0,0.00036273,2]
[314375481,1708245043021,-500.0,0.00036273,2]
[314375483,1708245043030,-500.0,0.00036273,2]
[314375485,1708245043041,-565.35866762,0.00036273,2]
[314375487,1708245043051,-500.0,0.00036273,2]
[314375489,1708245043061,-500.0,0.00036273,2]
[314375491,1708245043070,-500.0,0.00036273,2]
[314375493,1708245043080,-500.0,0.00036273,2]
[314375494,1708245043090,-500.0,0.00036273,2]
[314375495,1708245043103,-536.55397008,0.00036273,2]
[314375496,1708245043113,-515.92446478,0.00036273,2]
[314375497,1708245043122,-500.0,0.00036273,2]
[314375498,1708245043131,-500.0,0.00036273,2]
[314375499,1708245043142,-500.0,0.00036273,2]
[314375500,1708245043151,-597.28940292,0.00036273,2]
[314375501,1708245043162,-500.0,0.00036273,2]
[314375502,1708245043171,-513.90079036,0.00036273,2]
[314375503,1708245043181,-500.0,0.00036273,2]
[314375504,1708245043191,-500.0,0.00036273,2]
[314375505,1708245043200,-500.0,0.00036273,2]
[314375506,1708245043210,-504.97251538,0.00036273,2]
[314375507,1708245043220,-500.0,0.00036273,2]
[314375508,1708245043230,-500.0,0.00036273,2]
[314375509,1708245043239,-592.27063303,0.00036273,2]
[314375510,1708245043248,-500.0,0.00036273,2]
[314375511,1708245043259,-479.58250696,0.00036273,2]
[314375512,1708245043269,-500.0,0.00036273,2]
[314375513,1708245043278,-1119.1900224,0.00036273,2]
[314375514,1708245043287,-500.0,0.00036273,2]
[314375515,1708245043296,-515.85622584,0.00036273,2]
[314375516,1708245043305,-500.0,0.00036273,2]
[314375517,1708245043314,-500.0,0.00036273,2]
[314375518,1708245043323,-571.98327933,0.00036273,2]
[314375519,1708245043332,-500.0,0.00036273,2]
[314375520,1708245043340,-500.0,0.00036273,2]
[314375521,1708245043350,-500.0,0.00036273,2]
[314375522,1708245043359,-1000.0,0.00036273,7]
[314375523,1708245043368,-500.0,0.00036273,2]
[314375524,1708245043378,-500.0,0.00036273,2]
[314375525,1708245043387,-646.70445737,0.00036273,2]
[314375526,1708245043397,-500.0,0.00036273,2]
[314375528,1708245043407,-500.0,0.00036273,2]
[314375530,1708245043417,-539.64766094,0.00036273,2]
[314375532,1708245043426,-500.0,0.00036273,2]
[314375559,1708245043675,-642.34568668,0.00036273,2]
[314375561,1708245043685,-500.0,0.00036273,2]
[314375563,1708245043694,-500.0,0.00036273,2]
[314375565,1708245043703,-554.63670754,0.00036273,2]
[314375567,1708245043713,-500.0,0.00036273,2]
[314375569,1708245043722,-539.29053896,0.00036273,2]
[314375572,1708245043735,-500.0,0.00036273,2]
[314375574,1708245043744,-526.13140372,0.00036273,2]
[314375576,1708245043753,-774.7,0.00036273,2]
[314375577,1708245043763,-500.0,0.00036273,2]
[314375579,1708245043773,-500.0,0.00036273,2]
[314375581,1708245043782,-151.82965831,0.00036273,2]
[314375583,1708245043791,-462.40021552,0.00036273,2]
[314375585,1708245043801,-500.0,0.00036273,2]
[314375587,1708245043811,-566.33430895,0.00036273,2]
[314375589,1708245043821,-500.0,0.00036273,2]
[314375591,1708245043830,-500.0,0.00036273,2]
[314375593,1708245043839,-500.0,0.00036273,2]
[314375595,1708245043849,-532.47384442,0.00036273,2]
[314375597,1708245043858,-618.36536284,0.00036273,2]
[314375600,1708245043868,-500.0,0.00036273,2]
[314375602,1708245043877,-509.77,0.00036273,2]
[314375604,1708245043886,-493.47429671,0.00036273,2]
[314375606,1708245043895,-500.0,0.00036273,2]
[314375608,1708245043905,-500.0,0.00036273,2]
[314375610,1708245043914,-500.0,0.00036273,2]
[314375612,1708245043923,-544.46546393,0.00036273,2]
[314375614,1708245043933,-500.0,0.00036273,2]
[314375616,1708245043942,-500.0,0.00036273,2]
[314375618,1708245043951,-500.0,0.00036273,2]
[314375619,1708245043960,-661.75,0.00036273,2]
[314375621,1708245043969,-534.48922163,0.00036273,2]
[314375623,1708245043978,-822.73,0.00036273,2]
[314375625,1708245043987,-500.0,0.00036273,2]
[314375628,1708245043997,-516.94624825,0.00036273,2]
[314375629,1708245044006,-500.0,0.00036273,2]
[314375631,1708245044015,-500.0,0.00036273,2]
[314375634,1708245044025,-500.0,0.00036273,2]
[314375636,1708245044034,-500.0,0.00036273,2]
[314375638,1708245044043,-500.0,0.00036273,2]
[314375640,1708245044054,-500.0,0.00036273,2]
[314375642,1708245044063,-500.0,0.00036273,2]
[314375644,1708245044073,-495.57374111,0.00036273,2]
[314375646,1708245044083,-500.0,0.00036273,2]
[314375648,1708245044092,-500.0,0.00036273,2]
[314375650,1708245044102,-500.0,0.00036273,2]
[314375652,1708245044111,-510.60878276,0.00036273,2]
[314375654,1708245044120,-500.0,0.00036273,2]
[314375656,1708245044129,-500.0,0.00036273,2]
[314375658,1708245044138,-500.0,0.00036273,2]
[314375660,1708245044148,-500.0,0.00036273,2]
[314375662,1708245044157,-523.28579797,0.00036273,2]
[314375664,1708245044167,-500.0,0.00036273,2]
[314375666,1708245044176,-381.49998758,0.00036273,2]
[314375668,1708245044185,-500.0,0.00036273,2]
[314375670,1708245044195,-536.73151324,0.00036273,2]
[314375672,1708245044205,-508.95,0.00036273,2]
[314375674,1708245044214,-1199.76,0.00036273,2]
[314375676,1708245044223,-500.0,0.00036273,2]
[314375678,1708245044232,-204.22265328,0.00036273,2]
[314375680,1708245044241,-500.0,0.00036273,2]
[314375682,1708245044250,-500.0,0.00036273,2]
[314375684,1708245044259,-500.0,0.00036273,2]
[314375686,1708245044269,-500.0,0.00036273,2]
[314375688,1708245044278,-500.0,0.00036273,2]
[314375690,1708245044288,-500.0,0.00036273,2]
[314375692,1708245044298,-500.0,0.00036273,2]
[314375694,1708245044307,-500.0,0.00036274,2]
[314375696,1708245044316,-511.7782481,0.00036274,2]
[314375698,1708245044325,-500.0,0.00036274,15]
[314375700,1708245044334,-209.70962517,0.00036274,2]
[314375702,1708245044343,-1008.18822117,0.00036274,2]
[314375704,1708245044352,-295.34912171,0.00036274,9]
[314375706,1708245044362,-500.0,0.00036274,2]
[314375708,1708245044371,-500.0,0.00036274,2]
[314375710,1708245044380,-500.0,0.00036274,2]
[314375712,1708245044389,-636.60246582,0.00036274,2]
[314375714,1708245044398,-500.0,0.00036274,2]
[314375716,1708245044407,-500.0,0.00036274,2]
[314375718,1708245044416,-500.0,0.00036274,4]
[314375720,1708245044425,-500.0,0.00036274,2]
[314375721,1708245044434,-503.4995217,0.00036274,2]
[314375723,1708245044443,-500.0,0.00036274,2]
[314375725,1708245044453,-500.0,0.00036274,2]
[314375727,1708245044461,-500.0,0.00036274,2]
[314375729,1708245044470,-388.16202862,0.00036274,2]
[314375730,1708245044480,-500.0,0.00036274,2]
[314375731,1708245044490,-500.0,0.00036274,2]
[314375732,1708245044501,-440.4794583,0.00036274,2]
[314375733,1708245044510,-1219.44,0.00036274,2]
[314375734,1708245044520,-500.0,0.00036274,2]
[314375735,1708245044529,-500.0,0.00036274,2]
[314375736,1708245044538,-532.69943387,0.00036274,2]
[314375737,1708245044547,-500.0,0.00036274,2]
[314375738,1708245044567,-300.0,0.00036274,10]
[314375739,1708245044578,-500.0,0.00036274,2]
[314375740,1708245044587,-500.0,0.00036274,2]
[314375741,1708245044597,-452.86057195,0.00036274,2]
[314375742,1708245044606,-506.56950255,0.00036274,2]
[314375743,1708245044615,-322.79439107,0.00036274,2]
[314375744,1708245044625,-501.54603049,0.00036274,2]
[314375745,1708245044634,-506.47018725,0.00036274,2]
[314375746,1708245044644,-500.0,0.00036274,2]
[314375747,1708245044653,-582.20550566,0.00036274,2]
[314375748,1708245044662,-500.0,0.00036274,2]
[314375749,1708245044671,-542.28064353,0.00036274,2]
[314375750,1708245044681,-648.7512046,0.00036274,2]
[314375751,1708245044690,-500.0,0.00036274,2]
[314375752,1708245044700,-500.0,0.00036274,2]
[314375753,1708245044709,-538.08583577,0.00036274,2]
[314375754,1708245044719,-574.09599676,0.00036274,2]
[314375755,1708245044728,-500.0,0.00036274,2]
[314375756,1708245044738,-522.01915011,0.00036274,2]
[314375757,1708245044747,-375.74941182,0.00036274,2]
[314375758,1708245044757,-500.0,0.00036274,2]
[314375759,1708245044766,-500.0,0.00036274,2]
[314375760,1708245044776,-500.0,0.00036274,2]
[314375761,1708245044785,-554.75422004,0.00036274,2]
[314375762,1708245044795,-500.0,0.00036274,2]
[314375763,1708245044805,-500.0,0.00036274,2]
[314375764,1708245044815,-150.0,0.00036282,2]